Workbook

Sheet паспорт11,9
A1: ПАТ "УКРТРАНСГАЗ" | G1: ПАСПОРТ ФІЗИКО-ХІМІЧНИХ ПОКАЗНИКІВ ПРИРОДНОГО ГАЗУ № 11
A2: Філія "УМГ "Київтрансгаз" | G2: переданого Красилівським ЛВУМГ та прийнятого ПАТ "Хмельницькгаз" та прямими споживачами: АГНКС ПП АвтоГаз Красилів, АГНКС -1 Хмельницький,АГНКС ТОВ ТД "Сан Ойл", "Мотор Січ" м. Волочиськ
A3: Красилівське ЛВУМГ | G3: Маршрут № 11
A4: Вимірювальна хіміко-аналітична лабораторія
A5: Свідоцтво № 27"Ч"-17 чинно до 10.02.2020 р. | K5: по газопроводу КЗУ -1, ДК, ДКр | V5: за період з | X5: 2017-09-01 | Z5: по | AA5: 2017-09-30
A7: Число місяця | B7: Компонентний склад, % мол. | N7: Фізико-хімічні показники газу обчислені на основі компонентного складу, 101,325 кПа | X7: Температура точки роси за вологою (Р = 3.92 МПа), °С | Y7: Температура точки роси за вуглеводнями, °С | Z7: Вміст сірководню, г/м3 | AA7: Вміст меркаптанової сірки, г/м3 | AB7: Вміст механічних домішок, г/м3
N8: Густина абсолютна, кг/м3,при 20 °С, | O8: Температура вимірювання/згоряння при 20/25°С
B9: метан, С1 | C9: етан, С2 | D9: пропан, С3 | E9: ізо-бутан, і-С4 | F9: н-бутан, н-С4 | G9: нео-пентан, нео-С5 | H9: ізо-пентан, і-С5 | I9: н-пентан, н-С5 | J9: гексани та вищі, С6+ | K9: кисень, О2 | L9: азот, N2 | M9: діоксид вуглецю, CО2 | O9: Теплота згоряння нижча | R9: Теплота згоряння вища | U9: Число Воббе вище
O10: ккал/м³ | P10: МДж/м³ | Q10: кВт⋅год/м³ | R10: ккал/м³ | S10: МДж/м³ | T10: кВт⋅год/м³ | U10: ккал/м³ | V10: МДж/м³ | W10: кВт⋅год/м³
A11: 1 | O11: =P11*238.8459 -> 8262 | P11: 34.59 | Q11: =P11/3.6 -> 9.61 | R11: =S11*238.8459 -> 9148 | S11: 38.3 | T11: =S11/3.6 -> 10.64 | W11: =V11/3.6 -> 0 | AC11: =SUM(B11:M11)+$K$42+$N$42 -> 0
A12: 2 | O12: 8262 | P12: 34.59 | Q12: =P12/3.6 -> 9.61 | R12: 9148 | S12: 38.3 | T12: =S12/3.6 -> 10.64 | W12: =V12/3.6 -> 0 | AC12: 0
A13: 3 | O13: 8262 | P13: 34.59 | Q13: =P13/3.6 -> 9.61 | R13: 9148 | S13: 38.3 | T13: =S13/3.6 -> 10.64 | W13: =V13/3.6 -> 0 | AC13: 0 | AD13: =IF(AC13=100,"ОК"," ") -> 
A14: 4 | B14: 89.6077 | C14: 5.0044 | D14: 1.1664 | E14: 0.1237 | F14: 0.1988 | G14: 0.0045 | H14: 0.0506 | I14: 0.0441 | J14: 0.0832 | K14: 0.0078 | L14: 1.7281 | M14: 1.9806 | N14: 0.7535 | O14: 8257 | P14: 34.57 | Q14: 9.6 | R14: 9143 | S14: 38.28 | T14: 10.63 | U14: 11560 | V14: 48.4 | W14: =V14/3.6 -> 13.44 | X14: -4.5 | Y14: -4.9 | AC14: 100 | AD14: =IF(AC14=100,"ОК"," ") -> ОК
A15: 5 | O15: 8257 | P15: 34.57 | Q15: 9.6 | R15: 9143 | S15: 38.28 | T15: 10.63 | W15: 0 | AC15: 0
A16: 6 | O16: 8257 | P16: 34.57 | Q16: 9.6 | R16: 9143 | S16: 38.28 | T16: 10.63 | W16: =V16/3.6 -> 0 | Z16: 0.0002 | AA16: 0.0006 | AC16: 0
A17: 7 | O17: 8257 | P17: 34.57 | Q17: 9.6 | R17: 9143 | S17: 38.28 | T17: 10.63 | W17: =V17/3.6 -> 0 | AB17: 0.0008 | AC17: 0
A18: 8 | O18: 8257 | P18: 34.57 | Q18: 9.6 | R18: 9143 | S18: 38.28 | T18: 10.63 | W18: =V18/3.6 -> 0 | AC18: 0
A19: 9 | O19: 8257 | P19: 34.57 | Q19: 9.6 | R19: 9143 | S19: 38.28 | T19: 10.63 | W19: =V19/3.6 -> 0 | AC19: 0
A20: 10 | O20: 8257 | P20: 34.57 | Q20: 9.6 | R20: 9143 | S20: 38.28 | T20: 10.63 | W20: =V20/3.6 -> 0 | AC20: 0
A21: 11 | B21: 89.7026 | C21: 4.9378 | D21: 1.1709 | E21: 0.1267 | F21: 0.2094 | G21: 0.0044 | H21: 0.0553 | I21: 0.0505 | J21: 0.0922 | K21: 0.0068 | L21: 1.6675 | M21: 1.976 | N21: 0.7536 | O21: 8266 | P21: 34.61 | Q21: 9.61 | R21: 9155 | S21: 38.33 | T21: 10.65 | U21: 11573 | V21: 48.46 | W21: =V21/3.6 -> 13.46 | X21: -4.7 | Y21: -5.2 | AC21: 100 | AD21: ОК
A22: 12 | O22: 8266 | P22: 34.61 | Q22: 9.61 | R22: 9155 | S22: 38.33 | T22: 10.65 | W22: 0 | AC22: 0
A23: 13 | O23: 8266 | P23: 34.61 | Q23: 9.61 | R23: 9155 | S23: 38.33 | T23: 10.65 | W23: =V23/3.6 -> 0 | AC23: 0
A24: 14 | O24: 8266 | P24: 34.61 | Q24: 9.61 | R24: 9155 | S24: 38.33 | T24: 10.65 | W24: =V24/3.6 -> 0 | AC24: 0
A25: 15 | O25: 8266 | P25: 34.61 | Q25: 9.61 | R25: 9155 | S25: 38.33 | T25: 10.65 | W25: 0 | AC25: 0
A26: 16 | O26: 8266 | P26: 34.61 | Q26: 9.61 | R26: 9155 | S26: 38.33 | T26: 10.65 | W26: =V26/3.6 -> 0 | AC26: 0
A27: 17 | O27: 8266 | P27: 34.61 | Q27: 9.61 | R27: 9155 | S27: 38.33 | T27: 10.65 | W27: =V27/3.6 -> 0 | AC27: 0
A28: 18 | B28: 89.6932 | C28: 4.9406 | D28: 1.1633 | E28: 0.1257 | F28: 0.2068 | G28: 0.0044 | H28: 0.0534 | I28: 0.0483 | J28: 0.0897 | K28: 0.0057 | L28: 1.6979 | M28: 1.9709 | N28: 0.7533 | O28: 8262 | P28: 34.59 | Q28: 9.61 | R28: 9148 | S28: 38.3 | T28: 10.64 | U28: 11568 | V28: 48.43 | W28: 13.45 | X28: -5.8 | Y28: -6.8 | AC28: 100 | AD28: ОК
A29: 19 | O29: 8262 | P29: 34.59 | Q29: 9.61 | R29: 9148 | S29: 38.3 | T29: 10.64 | W29: 0 | AC29: 0
A30: 20 | O30: 8262 | P30: 34.59 | Q30: 9.61 | R30: 9148 | S30: 38.3 | T30: 10.64 | W30: =V30/3.6 -> 0 | AC30: 0 | AD30: =IF(AC30=100,"ОК"," ") -> 
A31: 21 | O31: 8262 | P31: 34.59 | Q31: 9.61 | R31: 9148 | S31: 38.3 | T31: 10.64 | W31: =V31/3.6 -> 0 | AB31: 0.0008 | AC31: 0
A32: 22 | O32: 8262 | P32: 34.59 | Q32: 9.61 | R32: 9148 | S32: 38.3 | T32: 10.64 | W32: 0 | AC32: 0
A33: 23 | O33: 8262 | P33: 34.59 | Q33: 9.61 | R33: 9148 | S33: 38.3 | T33: 10.64 | W33: 0 | AC33: 0 | AD33: =IF(AC33=100,"ОК"," ") -> 
A34: 24 | O34: 8262 | P34: 34.59 | Q34: 9.61 | R34: 9148 | S34: 38.3 | T34: 10.64 | W34: 0 | AC34: 0
A35: 25 | B35: 89.6965 | C35: 4.922 | D35: 1.1449 | E35: 0.1224 | F35: 0.1997 | G35: 0.0044 | H35: 0.0524 | I35: 0.0478 | J35: 0.0875 | K35: 0.0065 | L35: 1.7365 | M35: 1.9793 | N35: 0.753 | O35: 8250 | P35: 34.54 | Q35: 9.59 | R35: 9138 | S35: 38.26 | T35: 10.63 | U35: 11556 | V35: 48.38 | W35: 13.44 | X35: -6.1 | Y35: -6.4 | AC35: 100 | AD35: ОК
A36: 26 | O36: 8250 | P36: 34.54 | Q36: 9.59 | R36: 9138 | S36: 38.26 | T36: =S36/3.6 -> 10.63 | W36: 0 | Z36: 0.0002 | AA36: 0.0006 | AC36: 0
A37: 27 | O37: 8250 | P37: 34.54 | Q37: 9.59 | R37: 9138 | S37: 38.26 | T37: 10.63 | W37: =V37/3.6 -> 0 | AC37: 0
A38: 28 | O38: 8250 | P38: 34.54 | Q38: 9.59 | R38: 9138 | S38: 38.26 | T38: 10.63 | W38: =V38/3.6 -> 0 | AC38: 0
A39: 29 | O39: 8250 | P39: 34.54 | Q39: =P39/3.6 -> 9.59 | R39: 9138 | S39: 38.26 | T39: =S39/3.6 -> 10.63 | W39: 0 | AC39: 0
A40: 30 | O40: 8250 | P40: 34.54 | Q40: =P40/3.6 -> 9.59 | R40: 9138 | S40: 38.26 | T40: =S40/3.6 -> 10.63 | W40: 0 | AC40: 0
A41: 31 | O41: 0 | P41: 0 | Q41: =P41/3.6 -> 0 | R41: 0 | S41: 0 | T41: =S41/3.6 -> 0 | W41: 0 | AC41: 0
A42: Вміст одоранта при одоризації становить 16 г на 1 000 м³ газу | O42: =SUMPRODUCT(O11:O41,' розрахунок11,9'!AQ7:AQ37)/' розрахунок11,9'!AQ38 -> 8259 | P42: =SUMPRODUCT(P11:P41,' розрахунок11,9'!AQ7:AQ37)/' розрахунок11,9'!AQ38 -> 34.58 | Q42: =SUMPRODUCT(Q11:Q41,' розрахунок11,9'!AQ7:AQ37)/' розрахунок11,9'!AQ38 -> 9.6 | R42: =SUMPRODUCT(R11:R41,' розрахунок11,9'!AQ7:AQ37)/' розрахунок11,9'!AQ38 -> 9146 | S42: =SUMPRODUCT(S11:S41,' розрахунок11,9'!AQ7:AQ37)/' розрахунок11,9'!AQ38 -> 38.29 | T42: =SUMPRODUCT(T11:T41,' розрахунок11,9'!AQ7:AQ37)/' розрахунок11,9'!AQ38 -> 10.64
H43: Середньозважене значення теплоти згоряння:
B46: В.о.начальника управління Красилівського ЛВУМГ Семенюк П.В.
C47: Підрозділу підприємства, якому підпорядкована лабораторія | O47: прізвище | R47: підпис | V47: дата
B48: Завідувач лабораторією Пілецька С.А.
C49: Лабораторія, де здійснювалось вимірювання газу | O49: прізвище | R49: підпис | V49: дата
B50: Начальник служби метрології Мягкий С.В.
C51: Підрозділу, відповідального за облік газу за маршрутом | O51: прізвище | R51: підпис | V51: дата

Sheet розрахунок11,9
A2: Додаток до Паспорту фізико-хімічних показників природного газу по маршруту № 11
A4: Число місяця | B4: Теплота згоряння вища, МДж/м3 | C4: Хмельницька область | AQ4: Загальний обсяг газу, м3
C5: Обсяг газу переданого за добу, м3
C6: ГРС Красилів (місто) | D6: ГРС Красилів (цукр. завод) | E6: АГНКС ПП АвтоГаз Красилів | F6: ГРС Печеськи | G6: ГРС Закриниччя | H6: ГРС Чепелівка | I6: ГРС Чернелівка | J6: ГРС Заслучне | K6: ГРС Яворівці | L6: ГРС Пашутенці | M6: ГРС Митинці | N6: ГРС Хмельницький -1(Лісові Грінівці | O6: АГНКС-1 Хмельницький | P6: ГРС Везденьки | Q6: ГРС Черепова | R6: ГРС Грузевиця | S6: ГРС Хмельницький-2(Шаровечка) | T6: ГРС Малиничі | U6: АГНКС ТОВ ТД " Сан Ойл" | V6: ГРС Хмельницький3(Нижні Вовківці) | W6: ГРС Скарженці | X6: ГРС Сутківці | Y6: ГРС Глушківці | Z6: ГРС Мицівці | AA6: ГРС Дунаївці | AB6: ГРС Маків | AC6: ГРС Кам.Подільська №1 (місто) | AD6: ГРС Кам.Подільська №1 (цем. з-д) | AE6: ГРС Кам.Подільська №2 (ТЕЦ) | AF6: ГРС Шмирки | AG6: ГРС Купіль | AH6: ГРС Базалія | AI6: ГРС Теофіполь | AJ6: ГРС Заруддя | AK6: ГРС Ямпіль | AL6: ГРС Білогір'я | AM6: ГРС Денисівка | AN6: ГРС Гарнишівка | AO6: ГРС Волочиськ | AP6: машзавод "Мотор Січ"
A7: 1 | B7: 38.3 | C7: 8382 | D7: 0 | E7: 563 | F7: 1914 | G7: 309 | H7: 639 | I7: 375 | J7: 970 | K7: 390 | L7: 1461 | M7: 426 | N7: 175883 | O7: 170 | P7: 450 | Q7: 1435 | R7: 6475 | S7: 0 | T7: 4123 | U7: 1633 | V7: 0 | W7: 2231 | X7: 4736 | Y7: 578 | Z7: 5416 | AA7: 11089 | AB7: 3368 | AC7: 26090 | AD7: 24097 | AE7: 0 | AF7: 936 | AG7: 1213 | AH7: 4227 | AI7: 5969 | AJ7: 1252 | AK7: 1938 | AL7: 2560 | AM7: 899 | AN7: 3950 | AO7: 11759 | AP7: 4052 | AQ7: =SUM(C7:AP7) -> 321958
A8: 2 | B8: 38.3 | C8: 8889 | D8: 0 | E8: 479 | F8: 2252 | G8: 360 | H8: 773 | I8: 443 | J8: 1065 | K8: 434 | L8: 1744 | M8: 481 | N8: 181766 | O8: 310 | P8: 660 | Q8: 1579 | R8: 54067 | S8: 0 | T8: 3051 | U8: 1525 | V8: 0 | W8: 2716 | X8: 5376 | Y8: 759 | Z8: 7155 | AA8: 11656 | AB8: 3254 | AC8: 27483 | AD8: 17432 | AE8: 0 | AF8: 993 | AG8: 1324 | AH8: 4588 | AI8: 6452 | AJ8: 1578 | AK8: 1258 | AL8: 3160 | AM8: 1031 | AN8: 3722 | AO8: 12802 | AP8: 0 | AQ8: 372617
A9: 3 | B9: 38.3 | C9: 9809 | D9: 0 | E9: 482 | F9: 2004 | G9: 375 | H9: 743 | I9: 426 | J9: 1053 | K9: 419 | L9: 1617 | M9: 479 | N9: 187963 | O9: 249 | P9: 537 | Q9: 1622 | R9: 74624 | S9: 0 | T9: 759 | U9: 915 | V9: 0 | W9: 2446 | X9: 5240 | Y9: 660 | Z9: 6333 | AA9: 11057 | AB9: 2294 | AC9: 29228 | AD9: 17712 | AE9: 0 | AF9: 998 | AG9: 1278 | AH9: 2212 | AI9: 6186 | AJ9: 1508 | AK9: 1371 | AL9: 2738 | AM9: 999 | AN9: 3946 | AO9: 12652 | AP9: 1317 | AQ9: 394251
A10: 4 | B10: 38.28 | C10: 10191 | D10: 0 | E10: 982 | F10: 1988 | G10: 424 | H10: 739 | I10: 471 | J10: 1065 | K10: 473 | L10: 1675 | M10: 446 | N10: 191430 | O10: 254 | P10: 536 | Q10: 1577 | R10: 86012 | S10: 0 | T10: 4835 | U10: 1290 | V10: 0 | W10: 2397 | X10: 5223 | Y10: 691 | Z10: 5992 | AA10: 11836 | AB10: 3198 | AC10: 32855 | AD10: 27749 | AE10: 0 | AF10: 1049 | AG10: 1219 | AH10: 4584 | AI10: 6473 | AJ10: 1396 | AK10: 2464 | AL10: 2663 | AM10: 1032 | AN10: 4449 | AO10: 13513 | AP10: 5534 | AQ10: 438705
A11: 5 | B11: 38.28 | C11: 10558 | D11: 0 | E11: 857 | F11: 2271 | G11: 738 | H11: 806 | I11: 514 | J11: 1002 | K11: 496 | L11: 1601 | M11: 486 | N11: 183334 | O11: 394 | P11: 495 | Q11: 1621 | R11: 81450 | S11: 0 | T11: 2932 | U11: 1550 | V11: 0 | W11: 2567 | X11: 5352 | Y11: 692 | Z11: 6358 | AA11: 12766 | AB11: 3334 | AC11: 35119 | AD11: 26447 | AE11: 0 | AF11: 1023 | AG11: 1279 | AH11: 5432 | AI11: 6683 | AJ11: 2148 | AK11: 4774 | AL11: 3330 | AM11: 1196 | AN11: 5063 | AO11: 12528 | AP11: 6868 | AQ11: 434064
A12: 6 | B12: 38.28 | C12: 10556 | D12: 0 | E12: 913 | F12: 2309 | G12: 242 | H12: 772 | I12: 509 | J12: 1002 | K12: 569 | L12: 1562 | M12: 439 | N12: 178643 | O12: 494 | P12: 575 | Q12: 1703 | R12: 62754 | S12: 0 | T12: 2924 | U12: 1169 | V12: 0 | W12: 2444 | X12: 5353 | Y12: 718 | Z12: 5606 | AA12: 13206 | AB12: 3255 | AC12: 35040 | AD12: 47612 | AE12: 0 | AF12: 1053 | AG12: 1248 | AH12: 5913 | AI12: 6980 | AJ12: 2213 | AK12: 4694 | AL12: 3230 | AM12: 1231 | AN12: 5218 | AO12: 12855 | AP12: 5165 | AQ12: 430169
A13: 7 | B13: 38.28 | C13: 10643 | D13: 0 | E13: 794 | F13: 2193 | G13: 394 | H13: 785 | I13: 514 | J13: 1109 | K13: 536 | L13: 1507 | M13: 457 | N13: 179341 | O13: 544 | P13: 556 | Q13: 1736 | R13: 68800 | S13: 0 | T13: 2948 | U13: 1513 | V13: 0 | W13: 2464 | X13: 5399 | Y13: 693 | Z13: 6439 | AA13: 12417 | AB13: 3629 | AC13: 35489 | AD13: 45637 | AE13: 0 | AF13: 1025 | AG13: 1241 | AH13: 2557 | AI13: 8181 | AJ13: 2159 | AK13: 3239 | AL13: 3314 | AM13: 1100 | AN13: 5039 | AO13: 13113 | AP13: 5567 | AQ13: 433072
A14: 8 | B14: 38.28 | C14: 10218 | D14: 0 | E14: 923 | F14: 2133 | G14: 401 | H14: 775 | I14: 465 | J14: 1080 | K14: 525 | L14: 1532 | M14: 469 | N14: 175017 | O14: 252 | P14: 524 | Q14: 1827 | R14: 72124 | S14: 0 | T14: 3319 | U14: 1375 | V14: 0 | W14: 2412 | X14: 5240 | Y14: 707 | Z14: 6116 | AA14: 12490 | AB14: 3646 | AC14: 33932 | AD14: 51036 | AE14: 0 | AF14: 1024 | AG14: 1261 | AH14: 2192 | AI14: 10783 | AJ14: 1931 | AK14: 3938 | AL14: 3246 | AM14: 1098 | AN14: 4786 | AO14: 13024 | AP14: 4599 | AQ14: 436420
A15: 9 | B15: 38.28 | C15: 9547 | D15: 0 | E15: 508 | F15: 2420 | G15: 434 | H15: 882 | I15: 478 | J15: 1129 | K15: 527 | L15: 2880 | M15: 535 | N15: 178510 | O15: 0 | P15: 663 | Q15: 1781 | R15: 67574 | S15: 0 | T15: 3647 | U15: 1083 | V15: 0 | W15: 2886 | X15: 5790 | Y15: 791 | Z15: 8252 | AA15: 13078 | AB15: 3577 | AC15: 32672 | AD15: 47263 | AE15: 0 | AF15: 1076 | AG15: 1380 | AH15: 2693 | AI15: 6562 | AJ15: 2093 | AK15: 1423 | AL15: 3198 | AM15: 1251 | AN15: 4302 | AO15: 12707 | AP15: 1319 | AQ15: 424911
A16: 10 | B16: 38.28 | C16: 9068 | D16: 0 | E16: 609 | F16: 2039 | G16: 417 | H16: 664 | I16: 432 | J16: 1050 | K16: 451 | L16: 1850 | M16: 462 | N16: 180823 | O16: 0 | P16: 597 | Q16: 1754 | R16: 67710 | S16: 0 | T16: 3422 | U16: 1305 | V16: 0 | W16: 2432 | X16: 5513 | Y16: 686 | Z16: 8341 | AA16: 10803 | AB16: 3247 | AC16: 29523 | AD16: 32210 | AE16: 0 | AF16: 1007 | AG16: 1297 | AH16: 2079 | AI16: 6430 | AJ16: 2000 | AK16: 1737 | AL16: 2906 | AM16: 986 | AN16: 5138 | AO16: 15542 | AP16: 1083 | AQ16: 405613
A17: 11 | B17: 38.33 | C17: 8896 | D17: 0 | E17: 1046 | F17: 1670 | G17: 287 | H17: 569 | I17: 293 | J17: 845 | K17: 388 | L17: 1410 | M17: 370 | N17: 171130 | O17: 290 | P17: 434 | Q17: 1421 | R17: 67945 | S17: 0 | T17: 2586 | U17: 1257 | V17: 0 | W17: 2292 | X17: 4705 | Y17: 591 | Z17: 6999 | AA17: 13915 | AB17: 2939 | AC17: 27095 | AD17: 83953 | AE17: 0 | AF17: 862 | AG17: 1237 | AH17: 4227 | AI17: 13409 | AJ17: 1186 | AK17: 3452 | AL17: 2798 | AM17: 870 | AN17: 4246 | AO17: 12717 | AP17: 5192 | AQ17: 453522
A18: 12 | B18: 38.33 | C18: 9436 | D18: 0 | E18: 989 | F18: 1872 | G18: 321 | H18: 717 | I18: 440 | J18: 987 | K18: 435 | L18: 1875 | M18: 416 | N18: 167948 | O18: 607 | P18: 527 | Q18: 1478 | R18: 68581 | S18: 0 | T18: 2657 | U18: 1257 | V18: 0 | W18: 2351 | X18: 7260 | Y18: 674 | Z18: 7685 | AA18: 15498 | AB18: 3402 | AC18: 26057 | AD18: 34493 | AE18: 0 | AF18: 922 | AG18: 1492 | AH18: 4962 | AI18: 105204 | AJ18: 1049 | AK18: 6327 | AL18: 612 | AM18: 1056 | AN18: 5742 | AO18: 12283 | AP18: 5416 | AQ18: 503028
A19: 13 | B19: 38.33 | C19: 9323 | D19: 0 | E19: 976 | F19: 2191 | G19: 401 | H19: 650 | I19: 444 | J19: 1086 | K19: 464 | L19: 1531 | M19: 440 | N19: 169506 | O19: 353 | P19: 572 | Q19: 1594 | R19: 68700 | S19: 0 | T19: 2914 | U19: 1257 | V19: 0 | W19: 2416 | X19: 6858 | Y19: 662 | Z19: 11372 | AA19: 15945 | AB19: 3976 | AC19: 28464 | AD19: 38510 | AE19: 0 | AF19: 1012 | AG19: 1533 | AH19: 4783 | AI19: 177928 | AJ19: 1524 | AK19: 6976 | AL19: 2226 | AM19: 1031 | AN19: 6507 | AO19: 12906 | AP19: 6653 | AQ19: 593684
A20: 14 | B20: 38.33 | C20: 8983 | D20: 0 | E20: 800 | F20: 2049 | G20: 367 | H20: 752 | I20: 432 | J20: 1044 | K20: 485 | L20: 1702 | M20: 451 | N20: 167258 | O20: 237 | P20: 508 | Q20: 1582 | R20: 70535 | S20: 0 | T20: 3516 | U20: 1445 | V20: 0 | W20: 2466 | X20: 6285 | Y20: 671 | Z20: 9565 | AA20: 14068 | AB20: 3043 | AC20: 28878 | AD20: 39491 | AE20: 0 | AF20: 944 | AG20: 1576 | AH20: 5295 | AI20: 229101 | AJ20: 2404 | AK20: 7000 | AL20: 2643 | AM20: 982 | AN20: 6406 | AO20: 13053 | AP20: 3756 | AQ20: 639773
A21: 15 | B21: 38.33 | C21: 8575 | D21: 0 | E21: 807 | F21: 2010 | G21: 392 | H21: 659 | I21: 451 | J21: 1031 | K21: 453 | L21: 1729 | M21: 451 | N21: 166432 | O21: 401 | P21: 567 | Q21: 1627 | R21: 73794 | S21: 0 | T21: 3533 | U21: 1830 | V21: 0 | W21: 2486 | X21: 5922 | Y21: 719 | Z21: 6836 | AA21: 13140 | AB21: 3588 | AC21: 28184 | AD21: 40482 | AE21: 0 | AF21: 1007 | AG21: 1552 | AH21: 5231 | AI21: 240406 | AJ21: 1518 | AK21: 7788 | AL21: 2593 | AM21: 1083 | AN21: 6353 | AO21: 13795 | AP21: 3426 | AQ21: 650851
A22: 16 | B22: 38.33 | C22: 9643 | D22: 0 | E22: 435 | F22: 2432 | G22: 405 | H22: 832 | I22: 509 | J22: 1107 | K22: 532 | L22: 2067 | M22: 498 | N22: 165491 | O22: 185 | P22: 588 | Q22: 1735 | R22: 73136 | S22: 0 | T22: 3399 | U22: 1047 | V22: 0 | W22: 2609 | X22: 6674 | Y22: 749 | Z22: 6240 | AA22: 12165 | AB22: 3384 | AC22: 28047 | AD22: 22603 | AE22: 0 | AF22: 1044 | AG22: 1788 | AH22: 4461 | AI22: 251478 | AJ22: 1899 | AK22: 7207 | AL22: 6158 | AM22: 1146 | AN22: 4911 | AO22: 14072 | AP22: 0 | AQ22: 640676
A23: 17 | B23: 38.33 | C23: 9251 | D23: 0 | E23: 436 | F23: 1935 | G23: 371 | H23: 669 | I23: 443 | J23: 1017 | K23: 435 | L23: 1661 | M23: 420 | N23: 172411 | O23: 120 | P23: 553 | Q23: 1620 | R23: 68732 | S23: 0 | T23: 2862 | U23: 1091 | V23: 0 | W23: 2482 | X23: 5444 | Y23: 698 | Z23: 5221 | AA23: 11551 | AB23: 2323 | AC23: 28357 | AD23: 26201 | AE23: 0 | AF23: 967 | AG23: 1305 | AH23: 2166 | AI23: 246450 | AJ23: 1670 | AK23: 4099 | AL23: 5165 | AM23: 1014 | AN23: 3654 | AO23: 15357 | AP23: 1200 | AQ23: 629351
A24: 18 | B24: 38.3 | C24: 9839 | D24: 0 | E24: 932 | F24: 1794 | G24: 342 | H24: 587 | I24: 420 | J24: 970 | K24: 425 | L24: 1557 | M24: 380 | N24: 178438 | O24: 476 | P24: 489 | Q24: 1603 | R24: 67662 | S24: 0 | T24: 2945 | U24: 1689 | V24: 0 | W24: 2386 | X24: 5130 | Y24: 636 | Z24: 5443 | AA24: 12615 | AB24: 3207 | AC24: 28276 | AD24: 30434 | AE24: 0 | AF24: 948 | AG24: 1122 | AH24: 5095 | AI24: 253920 | AJ24: 1604 | AK24: 7816 | AL24: 4804 | AM24: 1046 | AN24: 4560 | AO24: 13894 | AP24: 4948 | AQ24: 658432
A25: 19 | B25: 38.3 | C25: 11273 | D25: 0 | E25: 853 | F25: 2029 | G25: 387 | H25: 781 | I25: 444 | J25: 1005 | K25: 507 | L25: 1802 | M25: 453 | N25: 182633 | O25: 571 | P25: 499 | Q25: 1291 | R25: 68895 | S25: 0 | T25: 3455 | U25: 1534 | V25: 0 | W25: 2431 | X25: 5284 | Y25: 667 | Z25: 5958 | AA25: 12447 | AB25: 3684 | AC25: 29725 | AD25: 60202 | AE25: 0 | AF25: 1012 | AG25: 1216 | AH25: 5306 | AI25: 124045 | AJ25: 1755 | AK25: 8375 | AL25: 3917 | AM25: 1056 | AN25: 7645 | AO25: 14388 | AP25: 5257 | AQ25: 572782
A26: 20 | B26: 38.3 | C26: 10074 | D26: 131 | E26: 700 | F26: 2119 | G26: 424 | H26: 779 | I26: 440 | J26: 1024 | K26: 506 | L26: 2247 | M26: 436 | N26: 177975 | O26: 296 | P26: 556 | Q26: 1710 | R26: 70863 | S26: 0 | T26: 3447 | U26: 1045 | V26: 0 | W26: 2613 | X26: 7321 | Y26: 662 | Z26: 6069 | AA26: 13881 | AB26: 3293 | AC26: 27497 | AD26: 60847 | AE26: 0 | AF26: 952 | AG26: 1553 | AH26: 5326 | AI26: 114678 | AJ26: 2122 | AK26: 3891 | AL26: 5294 | AM26: 1073 | AN26: 5768 | AO26: 12361 | AP26: 5198 | AQ26: 555171
A27: 21 | B27: 38.3 | C27: 10951 | D27: 0 | E27: 854 | F27: 2070 | G27: 417 | H27: 767 | I27: 449 | J27: 1042 | K27: 568 | L27: 1746 | M27: 461 | N27: 171149 | O27: 635 | P27: 553 | Q27: 1895 | R27: 69062 | S27: 0 | T27: 3588 | U27: 1068 | V27: 0 | W27: 2464 | X27: 6664 | Y27: 578 | Z27: 5758 | AA27: 12835 | AB27: 3090 | AC27: 27512 | AD27: 53352 | AE27: 0 | AF27: 981 | AG27: 729 | AH27: 4485 | AI27: 117353 | AJ27: 1867 | AK27: 6540 | AL27: 3565 | AM27: 1057 | AN27: 4873 | AO27: 13100 | AP27: 6999 | AQ27: 541077
A28: 22 | B28: 38.3 | C28: 12588 | D28: 0 | E28: 769 | F28: 2583 | G28: 505 | H28: 964 | I28: 687 | J28: 1244 | K28: 691 | L28: 1793 | M28: 642 | N28: 176455 | O28: 298 | P28: 646 | Q28: 2185 | R28: 71554 | S28: 0 | T28: 3434 | U28: 1149 | V28: 0 | W28: 2623 | X28: 6363 | Y28: 747 | Z28: 5731 | AA28: 15719 | AB28: 4114 | AC28: 31257 | AD28: 47817 | AE28: 0 | AF28: 1187 | AG28: 1495 | AH28: 5422 | AI28: 113403 | AJ28: 2728 | AK28: 4700 | AL28: 3555 | AM28: 1393 | AN28: 4941 | AO28: 14842 | AP28: 4599 | AQ28: 550823
A29: 23 | B29: 38.3 | C29: 12648 | D29: 0 | E29: 571 | F29: 2779 | G29: 600 | H29: 1019 | I29: 721 | J29: 1308 | K29: 774 | L29: 1777 | M29: 599 | N29: 189073 | O29: 170 | P29: 720 | Q29: 2224 | R29: 72458 | S29: 0 | T29: 4012 | U29: 1237 | V29: 0 | W29: 2837 | X29: 7372 | Y29: 808 | Z29: 6588 | AA29: 16003 | AB29: 4161 | AC29: 32589 | AD29: 33881 | AE29: 0 | AF29: 1250 | AG29: 1549 | AH29: 4637 | AI29: 117946 | AJ29: 2779 | AK29: 1835 | AL29: 3965 | AM29: 1391 | AN29: 3988 | AO29: 15801 | AP29: 1731 | AQ29: 553801
A30: 24 | B30: 38.3 | C30: 14059 | D30: 0 | E30: 649 | F30: 3076 | G30: 657 | H30: 1138 | I30: 861 | J30: 1442 | K30: 817 | L30: 2030 | M30: 635 | N30: 204905 | O30: 169 | P30: 732 | Q30: 2657 | R30: 73583 | S30: 0 | T30: 4100 | U30: 589 | V30: 0 | W30: 2929 | X30: 7084 | Y30: 776 | Z30: 5900 | AA30: 16560 | AB30: 3771 | AC30: 36343 | AD30: 36574 | AE30: 0 | AF30: 1342 | AG30: 1622 | AH30: 3519 | AI30: 122037 | AJ30: 2845 | AK30: 1985 | AL30: 4793 | AM30: 1689 | AN30: 4872 | AO30: 17108 | AP30: 1288 | AQ30: 585136
A31: 25 | B31: 38.26 | C31: 11929 | D31: 0 | E31: 731 | F31: 2493 | G31: 449 | H31: 891 | I31: 584 | J31: 1000 | K31: 650 | L31: 1734 | M31: 541 | N31: 187562 | O31: 256 | P31: 588 | Q31: 2095 | R31: 73726 | S31: 0 | T31: 3674 | U31: 1114 | V31: 0 | W31: 2625 | X31: 8710 | Y31: 694 | Z31: 5371 | AA31: 15930 | AB31: 4066 | AC31: 32502 | AD31: 36209 | AE31: 0 | AF31: 1142 | AG31: 1316 | AH31: 5889 | AI31: 109068 | AJ31: 2310 | AK31: 4189 | AL31: 5557 | AM31: 1208 | AN31: 4880 | AO31: 13859 | AP31: 5136 | AQ31: 550678
A32: 26 | B32: 38.26 | C32: 13302 | D32: 7438 | E32: 751 | F32: 2448 | G32: 474 | H32: 880 | I32: 600 | J32: 1152 | K32: 662 | L32: 1913 | M32: 570 | N32: 185658 | O32: 742 | P32: 607 | Q32: 2135 | R32: 91147 | S32: 0 | T32: 3381 | U32: 1618 | V32: 0 | W32: 2591 | X32: 10602 | Y32: 791 | Z32: 9069 | AA32: 17268 | AB32: 3774 | AC32: 33223 | AD32: 53129 | AE32: 0 | AF32: 1150 | AG32: 1329 | AH32: 5124 | AI32: 116274 | AJ32: 2237 | AK32: 671 | AL32: 5029 | AM32: 1232 | AN32: 5404 | AO32: 16099 | AP32: 6450 | AQ32: 606924
A33: 27 | B33: 38.26 | C33: 17527 | D33: 19177 | E33: 744 | F33: 2752 | G33: 542 | H33: 937 | I33: 681 | J33: 1275 | K33: 740 | L33: 1913 | M33: 626 | N33: 199186 | O33: 653 | P33: 691 | Q33: 3050 | R33: 97109 | S33: 0 | T33: 5089 | U33: 1819 | V33: 0 | W33: 2746 | X33: 10549 | Y33: 796 | Z33: 11580 | AA33: 19670 | AB33: 3592 | AC33: 37740 | AD33: 47286 | AE33: 0 | AF33: 1162 | AG33: 1846 | AH33: 4987 | AI33: 139698 | AJ33: 2435 | AK33: 1917 | AL33: 5413 | AM33: 1315 | AN33: 7766 | AO33: 18799 | AP33: 5133 | AQ33: 678941
A34: 28 | B34: 38.26 | C34: 19896 | D34: 25428 | E34: 927 | F34: 3432 | G34: 1329 | H34: 1209 | I34: 864 | J34: 1445 | K34: 956 | L34: 2618 | M34: 817 | N34: 220069 | O34: 909 | P34: 783 | Q34: 4227 | R34: 99156 | S34: 0 | T34: 6712 | U34: 2121 | V34: 0 | W34: 3098 | X34: 11350 | Y34: 947 | Z34: 10273 | AA34: 21867 | AB34: 4248 | AC34: 43116 | AD34: 64086 | AE34: 0 | AF34: 1293 | AG34: 3569 | AH34: 5005 | AI34: 121244 | AJ34: 2426 | AK34: 10939 | AL34: 7288 | AM34: 1414 | AN34: 16932 | AO34: 20248 | AP34: 5148 | AQ34: 747389
A35: 29 | B35: 38.26 | C35: 18417 | D35: 41860 | E35: 883 | F35: 4435 | G35: 919 | H35: 1263 | I35: 952 | J35: 1700 | K35: 992 | L35: 2681 | M35: 962 | N35: 224097 | O35: 433 | P35: 981 | Q35: 4226 | R35: 100679 | S35: 0 | T35: 7727 | U35: 1834 | V35: 0 | W35: 3172 | X35: 11966 | Y35: 1153 | Z35: 13446 | AA35: 24275 | AB35: 5788 | AC35: 45854 | AD35: 85498 | AE35: 0 | AF35: 1482 | AG35: 3207 | AH35: 5698 | AI35: 145561 | AJ35: 3134 | AK35: 14252 | AL35: 9238 | AM35: 1730 | AN35: 17350 | AO35: 20865 | AP35: 4873 | AQ35: 833583
A36: 30 | B36: 38.26 | C36: 20737 | D36: 39760 | E36: 838 | F36: 5779 | G36: 3004 | H36: 1630 | I36: 1208 | J36: 2022 | K36: 1233 | L36: 3313 | M36: 1163 | N36: 235867 | O36: 299 | P36: 1299 | Q36: 4827 | R36: 96628 | S36: 0 | T36: 8314 | U36: 2457 | V36: 0 | W36: 3832 | X36: 16844 | Y36: 1448 | Z36: 13464 | AA36: 25405 | AB36: 6244 | AC36: 53719 | AD36: 73945 | AE36: 0 | AF36: 1834 | AG36: 2901 | AH36: 6910 | AI36: 143548 | AJ36: 3887 | AK36: 11267 | AL36: 10712 | AM36: 3379 | AN36: 14419 | AO36: 23262 | AP36: 0 | AQ36: 847398
A37: 31 | B37: 0 | C37: 0 | D37: 0 | E37: 0 | F37: 0 | G37: 0 | H37: 0 | I37: 0 | J37: 0 | K37: 0 | L37: 0 | M37: 0 | N37: 0 | O37: 0 | P37: 0 | Q37: 0 | R37: 0 | S37: 0 | T37: 0 | U37: 0 | V37: 0 | W37: 0 | X37: 0 | Y37: 0 | Z37: 0 | AA37: 0 | AB37: 0 | AC37: 0 | AD37: 0 | AE37: 0 | AF37: 0 | AG37: 0 | AH37: 0 | AI37: 0 | AJ37: 0 | AK37: 0 | AL37: 0 | AM37: 0 | AN37: 0 | AO37: 0 | AP37: 0 | AQ37: 0
A38: Загальний обсяг газу, м3 | C38: =SUM(C7:C37) -> 345208 | D38: =SUM(D7:D37) -> 133794 | E38: =SUM(E7:E37) -> 22801 | F38: =SUM(F7:F37) -> 73471 | G38: 16687 | H38: =SUM(H7:H37) -> 25271 | I38: 16550 | J38: =SUM(J7:J37) -> 34271 | K38: 17533 | L38: 56528 | M38: 16011 | N38: 5525953 | O38: 10767 | P38: 18486 | Q38: 61817 | R38: 2185535 | S38: 0 | T38: 113305 | U38: 41816 | V38: 0 | W38: 78444 | X38: 211609 | Y38: 22442 | Z38: 224576 | AA38: 441155 | AB38: 108489 | AC38: 971866 | AD38: 1306188 | AE38: 0 | AF38: 32677 | AG38: 46677 | AH38: 135005 | AI38: 3073450 | AJ38: 61657 | AK38: 148062 | AL38: 125670 | AM38: 36988 | AN38: 186830 | AO38: 439304 | AP38: 117907 | AQ38: =SUM(AQ7:AQ37) -> 16484800
A39: Енергія, МДж | C39: =SUMPRODUCT($B7:$B37,C7:C37) -> 13217901.67 | D39: =SUMPRODUCT(A7:A37,D7:D37) -> 3832511 | E39: =SUMPRODUCT(B7:B37,E7:E37) -> 873136.29 | F39: =SUMPRODUCT(B7:B37,F7:F37) -> 2813203.45 | G39: =SUMPRODUCT(B7:B37,G7:G37) -> 638858.74 | H39: =SUMPRODUCT(B7:B37,H7:H37) -> 967643.88 | I39: =SUMPRODUCT(B7:B37,I7:I37) -> 633692.14 | J39: =SUMPRODUCT(B7:B37,J7:J37) -> 1312300.31 | K39: =SUMPRODUCT(B7:B37,K7:K37) -> 671328.8 | L39: =SUMPRODUCT(B7:B37,L7:L37) -> 2164562.63 | M39: =SUMPRODUCT(B7:B37,M7:M37) -> 613059.64 | N39: =SUMPRODUCT(B7:B37,N7:N37) -> 211603965.7 | O39: =SUMPRODUCT(B7:B37,O7:O37) -> 412271.45 | P39: =SUMPRODUCT($B7:$B37,P7:P37) -> 707849.39 | Q39: =SUMPRODUCT($B7:$B37,Q7:Q37) -> 2366860.43 | R39: 83688266.91 | S39: 0 | T39: 4338349.09 | U39: 1601204.1 | V39: 0 | W39: 3003843.66 | X39: 8102360.9 | Y39: 859338.8 | Z39: 8599408.14 | AA39: 16892416.44 | AB39: 4154222.15 | AC39: 37213781.5 | AD39: 50015607.19 | AE39: 0 | AF39: 1251264.18 | AG39: 1787298.37 | AH39: 5169771.73 | AI39: 117718996.7 | AJ39: 2360864.64 | AK39: 5669885.29 | AL39: 4811659.63 | AM39: 1416286.86 | AN39: 7153373.63 | AO39: 16821777.77 | AP39: 4514935.09 | AQ39: =SUMPRODUCT(B7:B37,AQ7:AQ37) -> 631260511
A40: Теплота згоряння (середньозважене значення за місяць), МДж/м³ | C40: =C39/C38 -> 38.29 | D40: =D39/D38 -> 28.64 | E40: =E39/E38 -> 38.29 | F40: =F39/F38 -> 38.29 | G40: =G39/G38 -> 38.28 | H40: =H39/H38 -> 38.29 | I40: 38.29 | J40: 38.29 | K40: 38.29 | L40: 38.29 | M40: 38.29 | N40: 38.29 | O40: 38.29 | P40: 38.29 | Q40: 38.29 | R40: 38.29 | S40: =IF(S38=0,"0",S39/S38) -> 0 | T40: 38.29 | U40: 38.29 | V40: =IF(V38=0,"0",V39/V38) -> 0 | W40: 38.29 | X40: 38.29 | Y40: 38.29 | Z40: 38.29 | AA40: 38.29 | AB40: 38.29 | AC40: 38.29 | AD40: 38.29 | AE40: =IF(AE38=0,"0",AE39/AE38) -> 0 | AF40: 38.29 | AG40: 38.29 | AH40: 38.29 | AI40: 38.3 | AJ40: 38.29 | AK40: 38.29 | AL40: 38.29 | AM40: 38.29 | AN40: 38.29 | AO40: 38.29 | AP40: 38.29 | AQ40: =AQ39/AQ38 -> 38.29
A41: Теплота згоряння (середньозважене значення за місяць), ккал/м³ | C41: =C40*238.8459 -> 9145 | D41: =D40*238.8459 -> 6841 | E41: =E40*238.8459 -> 9145 | F41: =F40*238.8459 -> 9145 | G41: 9143 | H41: 9145 | I41: 9145 | J41: 9145 | K41: 9145 | L41: 9145 | M41: 9145 | N41: 9145 | O41: 9145 | P41: 9145 | Q41: 9145 | R41: 9145 | S41: 0 | T41: 9145 | U41: 9145 | V41: 0 | W41: 9145 | X41: 9145 | Y41: 9145 | Z41: 9145 | AA41: 9145 | AB41: 9145 | AC41: 9145 | AD41: 9145 | AE41: 0 | AF41: 9145 | AG41: 9145 | AH41: 9145 | AI41: 9148 | AJ41: 9145 | AK41: 9145 | AL41: 9145 | AM41: 9145 | AN41: 9145 | AO41: 9145 | AP41: 9145 | AQ41: =AQ40*238.8459 -> 9145
A42: Теплота згоряння (середньозважене значення за місяць), кВт*год./м³ | C42: =C40/3.6 -> 10.64 | D42: 7.96 | E42: =E40/3.6 -> 10.64 | F42: =F40/3.6 -> 10.64 | G42: 10.63 | H42: 10.64 | I42: 10.64 | J42: 10.64 | K42: 10.64 | L42: 10.64 | M42: 10.64 | N42: 10.64 | O42: 10.64 | P42: 10.64 | Q42: 10.64 | R42: 10.64 | S42: 0 | T42: 10.64 | U42: 10.64 | V42: 0 | W42: 10.64 | X42: 10.64 | Y42: 10.64 | Z42: 10.64 | AA42: 10.64 | AB42: 10.64 | AC42: 10.64 | AD42: 10.64 | AE42: 0 | AF42: 10.64 | AG42: 10.64 | AH42: 10.64 | AI42: 10.64 | AJ42: 10.64 | AK42: 10.64 | AL42: 10.64 | AM42: 10.64 | AN42: 10.64 | AO42: 10.64 | AP42: 10.64 | AQ42: =AQ40/3.6 -> 10.64

Sheet додаток 11,9
A2: Додаток до Паспорту фізико-хімічних показників природного газу №11
A4: Область | B4: ГРС, прямий споживач | C4: Cередньозважене значення вищої теплоти згоряння
C5: МДж/м³ | D5: ккал/м³ | E5: кВт*год./м³
A6: Хмельницька область | B6: ГРС Красилів(місто) | C6: 38.29 | D6: 9145 | E6: 10.64
B7: ГРС Красилів (цукр. завод) | C7: 28.64 | D7: 6841 | E7: 7.96
B8: АГНКС ПП АвтоГаз Красилів | C8: 38.29 | D8: 9145 | E8: 10.64
B9: ГРС Печеськи | C9: 38.29 | D9: 9145 | E9: 10.64
B10: ГРС Закриниччя | C10: 38.28 | D10: 9145 | E10: 10.64
B11: ГРС Чепелівка | C11: 38.29 | D11: 9143 | E11: 10.64
B12: ГРС Чернелівка | C12: 38.29 | D12: 9145 | E12: 10.64
B13: ГРС Заслучне | C13: 38.29 | D13: 9145 | E13: 10.64
B14: ГРС Яворівці | C14: 38.29 | D14: 9145 | E14: 10.64
B15: ГРС Пашутенці | C15: 38.29 | D15: 9145 | E15: 10.64
B16: ГРС Митенці | C16: 38.29 | D16: 9145 | E16: 10.64
B17: ГРС Хмельницький-1(Лісові Гринівці) | C17: 38.29 | D17: 9145 | E17: 10.64
B18: АГНКС-1 Хмельницький | C18: 38.29 | D18: 9145 | E18: 10.64
B19: ГРС Везденьки | C19: 38.29 | D19: 9145 | E19: 10.64
B20: ГРС Черепова | C20: 38.29 | D20: 9145 | E20: 10.64
B21: ГРС Грузевиця | C21: 38.29 | D21: 9145 | E21: 10.64
B22: ГРС Хмельницький-2(Шаровечка) | C22: 0 | D22: 0 | E22: 0
B23: ГРС Малиничі | C23: 38.29 | D23: 9145 | E23: 10.64
B24: АГНКС ТОВ ТД "Сан Ойл" | C24: 38.29 | D24: 9145 | E24: 10.64
B25: ГРС Хмельницький-3(Нижні Вовківці) | C25: 0 | D25: 0 | E25: 0
B26: ГРС Скарженці | C26: 38.29 | D26: 9145 | E26: 10.64
B27: ГРС Сутківці | C27: 38.29 | D27: 9145 | E27: 10.64
B28: ГРС Глушківці | C28: 38.29 | D28: 9145 | E28: 10.64
B29: ГРС Мицівці | C29: 38.29 | D29: 9145 | E29: 10.64
B30: ГРС Дунаївці | C30: 38.29 | D30: 9145 | E30: 10.64
B31: ГРС Маків | C31: 38.29 | D31: 9145 | E31: 10.64
B32: ГРС Кам'янець-Подільський-1(місто) | C32: 38.29 | D32: 9145 | E32: 10.64
B33: ГРС Кам'янець-Подільський-1(цем.з-д) | C33: 38.29 | D33: 9145 | E33: 10.64
B34: ГРС Кам'янець-Подільський-2(ТЕЦ) | C34: 0 | D34: 0 | E34: 0
B35: ГРС Шмирки | C35: 38.29 | D35: 9145 | E35: 10.64
B36: ГРС Купіль | C36: 38.29 | D36: 9145 | E36: 10.64
B37: ГРС Базалія | C37: 38.29 | D37: 9145 | E37: 10.64
B38: ГРС Теофіполь | C38: 38.3 | D38: 9148 | E38: 10.64
B39: ГРС Заруддя | C39: 38.29 | D39: 9145 | E39: 10.64
B40: ГРС Ямпіль | C40: 38.29 | D40: 9145 | E40: 10.64
B41: ГРС Білогір'я | C41: 38.29 | D41: 9145 | E41: 10.64
B42: ГРС Денисівка | C42: 38.29 | D42: 9145 | E42: 10.64
B43: ГРС Гарнишівка | C43: 38.29 | D43: 9145 | E43: 10.64
B44: ГРС Волочиськ | C44: 38.29 | D44: 9145 | E44: 10.64
B45: "Мотор Січ" | C45: 38.29 | D45: 9145 | E45: 10.64
A46: Середньозважене значення вищої теплоти згоряння по маршруту № 11 | C46: 38.29 | D46: 9146 | E46: 10.64
A50: В.о.начальника управління Красилівського ЛВУМГ Семенюк П.В.
A51: Підрозділу підприємства, якому підпорядкована лабораторія | D51: прізвище | E51: підпис | F51: дата
A52: Завідувач лабораторією Пілецька С.А.
A53: Лабораторія, де здійснювалось вимірювання газу | D53: прізвище | E53: підпис | F53: дата
A54: Начальник служби метрології Мягкий С.В.
A55: Підрозділу, відповідального за облік газу за маршрутом | D55: прізвище | E55: підпис | F55: дата

Sheet variablesList (hidden)
A1: 3 | B1: x:\gaysin | C1: 10, 11, 24, 25, 127, 128, 132, 180, 207, 215 | D1: x:\
B2: x:\Illinci
B3: x:\Talne
